[Event "Betsys MČR v online bleskovém šachu 2021"]
[Site "Chess.com"]
[Date "2021.04.17"]
[Round "7"]
[White "masterofbuzkashi"]
[Black "LiborRojar"]
[Result "0-1"]
[WhiteElo "2243"]
[BlackElo "2079"]
[TimeControl "180+1"]
[EndTime "10:12:42 PDT"]
[Termination "Uživatel LiborRojar zvítězil po vzdání soupeře"]

1. d4 {[%clk 0:03:00.9]} 1... d5 {[%clk 0:02:59.5]} 2. c4 {[%clk 0:03:01.1]}
2... e6 {[%clk 0:02:59.5]} 3. Nc3 {[%clk 0:03:01]} 3... c5 {[%clk 0:02:59.7]} 4.
Nf3 {[%clk 0:03:01.1]} 4... cxd4 {[%clk 0:02:59.6]} 5. Nxd4 {[%clk 0:03:00.4]}
5... e5 {[%clk 0:02:59.7]} 6. Nc2 {[%clk 0:02:59.7]} 6... d4 {[%clk 0:02:59.7]}
7. Ne4 {[%clk 0:02:58.5]} 7... f5 {[%clk 0:02:59]} 8. Ng3 {[%clk 0:02:58.3]}
8... Nc6 {[%clk 0:02:57.4]} 9. Bd2 {[%clk 0:02:51.6]} 9... e4 {[%clk 0:02:51]}
10. b4 {[%clk 0:02:44.5]} 10... Nf6 {[%clk 0:02:43.9]} 11. b5 {[%clk 0:02:38.8]}
11... Ne5 {[%clk 0:02:43.1]} 12. e3 {[%clk 0:02:13.1]} 12... d3 {[%clk
0:02:34.2]} 13. Nd4 {[%clk 0:02:12.3]} 13... Nxc4 {[%clk 0:02:25.1]} 14. Ngxf5
{[%clk 0:02:09.9]} 14... Nxd2 {[%clk 0:02:08.2]} 15. Qxd2 {[%clk 0:02:07.8]}
15... g6 {[%clk 0:02:06]} 16. Ng3 {[%clk 0:02:04.4]} 16... Bg7 {[%clk 0:02:02]}
17. f3 {[%clk 0:02:04.5]} 17... exf3 {[%clk 0:01:44.6]} 18. gxf3 {[%clk
0:02:03.3]} 18... O-O {[%clk 0:01:37.5]} 19. Bxd3 {[%clk 0:02:03.3]} 19... Qe7
{[%clk 0:01:17.3]} 20. O-O {[%clk 0:02:00.1]} 20... Kh8 {[%clk 0:01:12.7]} 21.
Rae1 {[%clk 0:01:56.1]} 21... Nd5 {[%clk 0:01:08.6]} 22. Ne4 {[%clk 0:01:50.9]}
22... Bh3 {[%clk 0:01:02.1]} 23. Rf2 {[%clk 0:01:48.9]} 23... Rad8 {[%clk
0:00:54.2]} 24. a4 {[%clk 0:01:47.5]} 24... Nxe3 {[%clk 0:00:46.5]} 25. Nb3
{[%clk 0:01:14.1]} 25... Nf5 {[%clk 0:00:29.9]} 26. Nec5 {[%clk 0:00:56.9]}
26... Qd6 {[%clk 0:00:19.8]} 27. Re6 {[%clk 0:00:53.3]} 27... Qd5 {[%clk
0:00:16.9]} 28. Be4 {[%clk 0:00:47.9]} 28... Qxd2 {[%clk 0:00:15.5]} 29. Rxd2
{[%clk 0:00:47.4]} 29... Rxd2 {[%clk 0:00:15.1]} 30. Nxd2 {[%clk 0:00:46.3]}
30... Bd4+ {[%clk 0:00:14.5]} 31. Kh1 {[%clk 0:00:45.7]} 31... Bxc5 {[%clk
0:00:14.5]} 32. Bxb7 {[%clk 0:00:43.5]} 32... Rd8 {[%clk 0:00:13.2]} 33. Re2
{[%clk 0:00:38.8]} 33... Bb4 {[%clk 0:00:11.5]} 34. Bc6 {[%clk 0:00:28.9]} 34...
Rxd2 {[%clk 0:00:10.8]} 35. Rxd2 {[%clk 0:00:28]} 35... Bxd2 {[%clk 0:00:10.6]}
36. Kg1 {[%clk 0:00:28.1]} 36... Ne3 {[%clk 0:00:10.4]} 37. Kf2 {[%clk
0:00:27.8]} 37... Kg7 {[%clk 0:00:10.7]} 38. Ke2 {[%clk 0:00:27.9]} 38... Bc1
{[%clk 0:00:10.3]} 39. Kd3 {[%clk 0:00:28]} 39... Kf6 {[%clk 0:00:09.3]} 40. Kd4
{[%clk 0:00:28.3]} 40... g5 {[%clk 0:00:08.9]} 41. Kc5 {[%clk 0:00:28.6]} 41...
Nf5 {[%clk 0:00:08.6]} 42. a5 {[%clk 0:00:28.1]} 42... Be3+ {[%clk 0:00:08.5]}
43. Kc4 {[%clk 0:00:28.2]} 43... Ke5 {[%clk 0:00:08.5]} 44. Be4 {[%clk
0:00:26.1]} 44... Nd6+ {[%clk 0:00:07.7]} 45. Kd3 {[%clk 0:00:25.6]} 45... Nxe4
{[%clk 0:00:07.6]} 46. fxe4 {[%clk 0:00:26.5]} 46... Bc5 {[%clk 0:00:07.1]} 47.
Kc4 {[%clk 0:00:26.1]} 47... Kd6 {[%clk 0:00:07.3]} 48. e5+ {[%clk 0:00:25.7]}
48... Kxe5 {[%clk 0:00:06.2]} 49. Kxc5 {[%clk 0:00:26.1]} 49... Bg2 {[%clk
0:00:06.3]} 50. b6 {[%clk 0:00:26.1]} 50... axb6+ {[%clk 0:00:05.6]} 51. axb6
{[%clk 0:00:25.1]} 51... h5 {[%clk 0:00:05.7]} 52. Kc4 {[%clk 0:00:25.1]} 52...
Kf4 {[%clk 0:00:05.7]} 53. Kd3 {[%clk 0:00:25.5]} 53... Kg4 {[%clk 0:00:05]} 54.
Ke2 {[%clk 0:00:25.7]} 54... Kh3 {[%clk 0:00:05.1]} 55. Kf2 {[%clk 0:00:26]}
55... Kxh2 {[%clk 0:00:05.3]} 56. Ke3 {[%clk 0:00:24.3]} 56... h4 {[%clk
0:00:05.2]} 57. Kf2 {[%clk 0:00:24.6]} 57... h3 {[%clk 0:00:05.3]} 58. Ke1
{[%clk 0:00:24.6]} 58... Kg1 {[%clk 0:00:05.6]} 59. Ke2 {[%clk 0:00:24.8]} 59...
h2 {[%clk 0:00:06.1]} 60. Kd3 {[%clk 0:00:25.1]} 60... h1=Q {[%clk 0:00:06.2]}
0-1

[Event "Betsys MČR v online bleskovém šachu 2021"]
[Site "Chess.com"]
[Date "2021.04.17"]
[Round "7"]
[White "RadosC"]
[Black "milanpetras"]
[Result "1-0"]
[WhiteElo "2490"]
[BlackElo "1846"]
[TimeControl "180+1"]
[EndTime "10:12:42 PDT"]
[Termination "Uživatel RadosC zvítězil na čas"]

1. e4 {[%clk 0:03:00.9]} 1... e6 {[%clk 0:02:57.6]} 2. d4 {[%clk 0:03:00.2]}
2... d5 {[%clk 0:02:58.5]} 3. Nd2 {[%clk 0:03:00.4]} 3... c5 {[%clk 0:02:56.2]}
4. exd5 {[%clk 0:02:59.4]} 4... exd5 {[%clk 0:02:55.4]} 5. Ngf3 {[%clk
0:02:59.2]} 5... Nc6 {[%clk 0:02:54.7]} 6. Bb5 {[%clk 0:02:58.8]} 6... Bd6
{[%clk 0:02:52.8]} 7. O-O {[%clk 0:02:57.8]} 7... Ne7 {[%clk 0:02:51.7]} 8. dxc5
{[%clk 0:02:58]} 8... Bxc5 {[%clk 0:02:50.8]} 9. Nb3 {[%clk 0:02:58.5]} 9... Bb6
{[%clk 0:02:48.7]} 10. Bg5 {[%clk 0:02:57]} 10... O-O {[%clk 0:02:37.8]} 11. h3
{[%clk 0:02:51.7]} 11... h6 {[%clk 0:02:22.9]} 12. Bf4 {[%clk 0:02:47.4]} 12...
Nf5 {[%clk 0:02:11.2]} 13. Qd2 {[%clk 0:02:41.5]} 13... a6 {[%clk 0:01:52]} 14.
Bd3 {[%clk 0:02:38.1]} 14... Qf6 {[%clk 0:01:40.7]} 15. c3 {[%clk 0:02:34.1]}
15... Be6 {[%clk 0:01:31]} 16. Rfe1 {[%clk 0:02:31.8]} 16... Rfe8 {[%clk
0:01:27.3]} 17. Rad1 {[%clk 0:02:30.8]} 17... Rad8 {[%clk 0:01:26.8]} 18. Bb1
{[%clk 0:02:26.4]} 18... d4 {[%clk 0:01:07.7]} 19. Qc1 {[%clk 0:01:51.8]} 19...
dxc3 {[%clk 0:01:03.8]} 20. bxc3 {[%clk 0:01:51.4]} 20... g5 {[%clk 0:00:55]}
21. Bh2 {[%clk 0:01:45.7]} 21... Rxd1 {[%clk 0:00:53.1]} 22. Rxd1 {[%clk
0:01:42.9]} 22... Nh4 {[%clk 0:00:52]} 23. Nfd4 {[%clk 0:01:30]} 23... Bxb3
{[%clk 0:00:44.6]} 24. axb3 {[%clk 0:01:21.6]} 24... Nxd4 {[%clk 0:00:43.1]} 25.
cxd4 {[%clk 0:01:21.1]} 25... Bxd4 {[%clk 0:00:41.8]} 26. Qc2 {[%clk 0:01:16.3]}
26... Ng6 {[%clk 0:00:27.3]} 27. Bg3 {[%clk 0:01:12.9]} 27... h5 {[%clk
0:00:25.3]} 28. Qd2 {[%clk 0:01:00.4]} 28... Rd8 {[%clk 0:00:24.4]} 29. Qe2
{[%clk 0:00:54.8]} 29... h4 {[%clk 0:00:22.1]} 30. Bc7 {[%clk 0:00:41.5]} 30...
Rc8 {[%clk 0:00:20.3]} 31. Bh2 {[%clk 0:00:36.6]} 31... Rd8 {[%clk 0:00:18.5]}
32. Bxg6 {[%clk 0:00:33.9]} 32... Qxg6 {[%clk 0:00:16]} 33. Kh1 {[%clk
0:00:32.8]} 33... Qe6 {[%clk 0:00:14.9]} 34. Qd2 {[%clk 0:00:31]} 34... Qf6
{[%clk 0:00:13.6]} 35. Bg1 {[%clk 0:00:30.4]} 35... Bb6 {[%clk 0:00:11.5]} 36.
Qc1 {[%clk 0:00:30.2]} 36... Rxd1 {[%clk 0:00:10.2]} 37. Qxd1 {[%clk 0:00:31.1]}
37... Bc7 {[%clk 0:00:10.2]} 38. Qd2 {[%clk 0:00:29.3]} 38... Qe5 {[%clk
0:00:09.9]} 39. Qd3 {[%clk 0:00:28.5]} 39... Kg7 {[%clk 0:00:10.2]} 40. Qf3
{[%clk 0:00:28.3]} 40... Kg6 {[%clk 0:00:09.9]} 41. Qxb7 {[%clk 0:00:28.3]}
41... g4 {[%clk 0:00:07.5]} 42. Qxa6+ {[%clk 0:00:27.6]} 42... Kg7 {[%clk
0:00:06.5]} 43. hxg4 {[%clk 0:00:26.1]} 43... Qf4 {[%clk 0:00:05]} 44. Qc4
{[%clk 0:00:25.5]} 44... h3 {[%clk 0:00:03.9]} 45. Qxf4 {[%clk 0:00:24.3]} 45...
hxg2+ {[%clk 0:00:04.6]} 46. Kxg2 {[%clk 0:00:24.9]} 46... Bxf4 {[%clk
0:00:02.1]} 47. Kf3 {[%clk 0:00:25.1]} 47... Bd6 {[%clk 0:00:01.6]} 48. Ke4
{[%clk 0:00:25.3]} 48... Kf6 {[%clk 0:00:02.1]} 49. f4 {[%clk 0:00:25]} 49...
Bb4 {[%clk 0:00:02.2]} 50. Bd4+ {[%clk 0:00:24.4]} 50... Ke6 {[%clk 0:00:02.9]}
51. f5+ {[%clk 0:00:24.8]} 51... Kd6 {[%clk 0:00:02.8]} 52. g5 {[%clk
0:00:23.9]} 52... Bd2 {[%clk 0:00:02.4]} 53. g6 {[%clk 0:00:23.8]} 53... fxg6
{[%clk 0:00:02.4]} 54. fxg6 {[%clk 0:00:24.1]} 54... Ke6 {[%clk 0:00:03.3]} 55.
Kd3 {[%clk 0:00:22.5]} 55... Bb4 {[%clk 0:00:02.8]} 56. Kc4 {[%clk 0:00:22.5]}
56... Bf8 {[%clk 0:00:02.3]} 57. b4 {[%clk 0:00:22.8]} 57... Kd7 {[%clk
0:00:01.7]} 58. g7 {[%clk 0:00:22.7]} 1-0

[Event "Betsys MČR v online bleskovém šachu 2021"]
[Site "Chess.com"]
[Date "2021.04.17"]
[Round "7"]
[White "jachymcarostrelec4"]
[Black "xPsylocke"]
[Result "0-1"]
[WhiteElo "1969"]
[BlackElo "2201"]
[TimeControl "180+1"]
[EndTime "10:12:45 PDT"]
[Termination "Uživatel xPsylocke zvítězil na čas"]

1. d4 {[%clk 0:03:00.9]} 1... Nf6 {[%clk 0:02:58.7]} 2. Nf3 {[%clk 0:02:59.2]}
2... g6 {[%clk 0:02:58.2]} 3. c4 {[%clk 0:02:58.3]} 3... d6 {[%clk 0:02:57.5]}
4. Nc3 {[%clk 0:02:58.1]} 4... Bg7 {[%clk 0:02:56.4]} 5. e4 {[%clk 0:02:57.9]}
5... O-O {[%clk 0:02:52.7]} 6. Be2 {[%clk 0:02:57.7]} 6... c6 {[%clk 0:02:50.4]}
7. O-O {[%clk 0:02:54.8]} 7... Qc7 {[%clk 0:02:50.5]} 8. d5 {[%clk 0:02:47.9]}
8... Nbd7 {[%clk 0:02:39]} 9. Be3 {[%clk 0:02:44.6]} 9... h6 {[%clk 0:02:27.1]}
10. Qd2 {[%clk 0:02:39.2]} 10... Kh7 {[%clk 0:02:27.2]} 11. h3 {[%clk
0:02:35.9]} 11... Nc5 {[%clk 0:02:16.4]} 12. Qc2 {[%clk 0:02:18.6]} 12... cxd5
{[%clk 0:01:57.5]} 13. Nxd5 {[%clk 0:02:18]} 13... Nxd5 {[%clk 0:01:52.7]} 14.
cxd5 {[%clk 0:02:18.9]} 14... Bd7 {[%clk 0:01:50.2]} 15. Rac1 {[%clk 0:02:14.6]}
15... a5 {[%clk 0:01:48.1]} 16. a3 {[%clk 0:02:12.9]} 16... a4 {[%clk
0:01:43.9]} 17. Bxc5 {[%clk 0:02:11.5]} 17... Qxc5 {[%clk 0:01:32.6]} 18. Qxc5
{[%clk 0:02:12.4]} 18... dxc5 {[%clk 0:01:33.5]} 19. Rxc5 {[%clk 0:02:13.3]}
19... Bxb2 {[%clk 0:01:14.5]} 20. Rc7 {[%clk 0:02:12]} 20... Bc8 {[%clk
0:01:14.6]} 21. Rxe7 {[%clk 0:02:02]} 21... Bxa3 {[%clk 0:01:14]} 22. Rc7 {[%clk
0:01:55.4]} 22... Bd6 {[%clk 0:01:14]} 23. Rc2 {[%clk 0:01:52.5]} 23... Re8
{[%clk 0:01:09.4]} 24. e5 {[%clk 0:01:34.2]} 24... Bxe5 {[%clk 0:01:08.6]} 25.
Bb5 {[%clk 0:01:33.3]} 25... Re7 {[%clk 0:01:05.3]} 26. Re1 {[%clk 0:01:29.8]}
26... Bd6 {[%clk 0:01:01.8]} 27. Rxe7 {[%clk 0:01:23.8]} 27... Bxe7 {[%clk
0:01:02.7]} 28. Bxa4 {[%clk 0:01:15]} 28... Bf5 {[%clk 0:00:52.8]} 29. Rc4
{[%clk 0:00:45.9]} 29... Bd6 {[%clk 0:00:48.8]} 30. g4 {[%clk 0:00:40.5]} 30...
Bd3 {[%clk 0:00:44.6]} 31. Rd4 {[%clk 0:00:40.2]} 31... b5 {[%clk 0:00:37.2]}
32. Bd1 {[%clk 0:00:25.6]} 32... Bc4 {[%clk 0:00:31.6]} 33. Nd2 {[%clk
0:00:24.4]} 33... Bc5 {[%clk 0:00:27.9]} 34. Rf4 {[%clk 0:00:19]} 34... Ra1
{[%clk 0:00:27.7]} 35. Nxc4 {[%clk 0:00:16.2]} 35... Rxd1+ {[%clk 0:00:25.9]}
36. Kg2 {[%clk 0:00:16.3]} 36... bxc4 {[%clk 0:00:24.5]} 37. Rxc4 {[%clk
0:00:17.2]} 37... Rxd5 {[%clk 0:00:23.7]} 38. Rf4 {[%clk 0:00:17.8]} 38... Kg7
{[%clk 0:00:23.5]} 39. Rf3 {[%clk 0:00:17.6]} 39... f5 {[%clk 0:00:21.5]} 40.
gxf5 {[%clk 0:00:15.4]} 40... Rxf5 {[%clk 0:00:22.4]} 41. Rc3 {[%clk 0:00:10.9]}
41... Bxf2 {[%clk 0:00:18.5]} 42. Rc4 {[%clk 0:00:09]} 42... Kf6 {[%clk
0:00:18.1]} 43. Rc6+ {[%clk 0:00:08.4]} 43... Kg5 {[%clk 0:00:18.3]} 44. Rc4
{[%clk 0:00:08.2]} 44... Kh5 {[%clk 0:00:16.7]} 45. Rg4 {[%clk 0:00:06.5]} 45...
Bh4 {[%clk 0:00:14.3]} 46. Rc4 {[%clk 0:00:05.5]} 46... Rf2+ {[%clk 0:00:14.3]}
47. Kh1 {[%clk 0:00:05.1]} 47... Re2 {[%clk 0:00:13.6]} 48. Rc5+ {[%clk
0:00:04.7]} 48... g5 {[%clk 0:00:13.9]} 49. Rc4 {[%clk 0:00:04.9]} 49... Bg3
{[%clk 0:00:13.6]} 50. Rg4 {[%clk 0:00:03.1]} 50... Bf4 {[%clk 0:00:13.8]} 51.
Rg2 {[%clk 0:00:01.4]} 51... Rxg2 {[%clk 0:00:12.9]} 52. Kxg2 {[%clk 0:00:02.3]}
52... Kh4 {[%clk 0:00:13.5]} 0-1

[Event "Betsys MČR v online bleskovém šachu 2021"]
[Site "Chess.com"]
[Date "2021.04.17"]
[Round "7"]
[White "Honzik1950"]
[Black "matycz07"]
[Result "1-0"]
[WhiteElo "1508"]
[BlackElo "1012"]
[TimeControl "180+1"]
[EndTime "10:12:45 PDT"]
[Termination "Uživatel Honzik1950 zvítězil matem"]

1. e4 {[%clk 0:03:00.9]} 1... e5 {[%clk 0:02:54.2]} 2. Nf3 {[%clk 0:02:59.9]}
2... Nc6 {[%clk 0:02:54.3]} 3. Bb5 {[%clk 0:02:58.5]} 3... Nf6 {[%clk
0:02:48.5]} 4. O-O {[%clk 0:02:58.2]} 4... Bc5 {[%clk 0:02:47]} 5. d3 {[%clk
0:02:56.7]} 5... O-O {[%clk 0:02:44.7]} 6. c3 {[%clk 0:02:56.5]} 6... a6 {[%clk
0:02:38.5]} 7. Ba4 {[%clk 0:02:54.7]} 7... b5 {[%clk 0:02:37.9]} 8. Bc2 {[%clk
0:02:54.5]} 8... d6 {[%clk 0:02:36.8]} 9. Nbd2 {[%clk 0:02:52.1]} 9... Ng4
{[%clk 0:02:25.9]} 10. h3 {[%clk 0:02:50.5]} 10... Nh6 {[%clk 0:02:19.4]} 11.
Re1 {[%clk 0:02:39.8]} 11... Be6 {[%clk 0:02:10.8]} 12. Nf1 {[%clk 0:02:39]}
12... Qf6 {[%clk 0:02:03.7]} 13. Bg5 {[%clk 0:02:12]} 13... Qg6 {[%clk
0:02:00.2]} 14. Ng3 {[%clk 0:01:48.3]} 14... f6 {[%clk 0:01:53.6]} 15. Be3
{[%clk 0:01:30.5]} 15... Bxe3 {[%clk 0:01:46.5]} 16. Rxe3 {[%clk 0:01:30.6]}
16... d5 {[%clk 0:01:34.3]} 17. Nh4 {[%clk 0:01:21.1]} 17... Qf7 {[%clk
0:01:27.5]} 18. Rf3 {[%clk 0:00:58.5]} 18... dxe4 {[%clk 0:01:24.4]} 19. dxe4
{[%clk 0:00:58]} 19... f5 {[%clk 0:01:17.2]} 20. exf5 {[%clk 0:00:56.1]} 20...
Bd5 {[%clk 0:01:13.8]} 21. Re3 {[%clk 0:00:43.6]} 21... Ne7 {[%clk 0:01:03.1]}
22. Bb3 {[%clk 0:00:32.3]} 22... Bxb3 {[%clk 0:01:02.1]} 23. axb3 {[%clk
0:00:28.5]} 23... Nexf5 {[%clk 0:00:58.1]} 24. Ngxf5 {[%clk 0:00:21.9]} 24...
Nxf5 {[%clk 0:00:59]} 25. Nxf5 {[%clk 0:00:22]} 25... Qxf5 {[%clk 0:00:58.9]}
26. Rf3 {[%clk 0:00:21.5]} 26... Qe4 {[%clk 0:00:55.6]} 27. Qe1 {[%clk
0:00:17.9]} 27... Qxe1+ {[%clk 0:00:53.8]} 28. Rxe1 {[%clk 0:00:18.1]} 28...
Rxf3 {[%clk 0:00:54.5]} 29. gxf3 {[%clk 0:00:17.7]} 29... Rf8 {[%clk 0:00:55.3]}
30. Kg2 {[%clk 0:00:17]} 30... h5 {[%clk 0:00:52.9]} 31. Rxe5 {[%clk 0:00:16.4]}
31... g6 {[%clk 0:00:50.2]} 32. Re7 {[%clk 0:00:15]} 32... c5 {[%clk 0:00:48.2]}
33. Rc7 {[%clk 0:00:14.1]} 33... c4 {[%clk 0:00:46.9]} 34. bxc4 {[%clk
0:00:13.6]} 34... bxc4 {[%clk 0:00:47.8]} 35. Rxc4 {[%clk 0:00:13.8]} 35... Rb8
{[%clk 0:00:47.4]} 36. b4 {[%clk 0:00:13]} 36... Rd8 {[%clk 0:00:44.4]} 37. Rc6
{[%clk 0:00:12.1]} 37... Rd2 {[%clk 0:00:43.8]} 38. Rxg6+ {[%clk 0:00:10.6]}
38... Kh7 {[%clk 0:00:43]} 39. Rxa6 {[%clk 0:00:10.3]} 39... Rc2 {[%clk
0:00:43.9]} 40. Rc6 {[%clk 0:00:09.5]} 40... Kg7 {[%clk 0:00:42.9]} 41. b5
{[%clk 0:00:09.7]} 41... Kf7 {[%clk 0:00:42.1]} 42. b6 {[%clk 0:00:09.7]} 42...
Rb2 {[%clk 0:00:40.7]} 43. Rc7+ {[%clk 0:00:09.5]} 43... Ke8 {[%clk 0:00:39.9]}
44. b7 {[%clk 0:00:09.8]} 44... Rb5 {[%clk 0:00:30]} 45. Rc8+ {[%clk 0:00:08.3]}
45... Kd7 {[%clk 0:00:28.6]} 46. b8=Q {[%clk 0:00:08.4]} 46... Rxb8 {[%clk
0:00:28.8]} 47. Rxb8 {[%clk 0:00:08.8]} 47... Ke6 {[%clk 0:00:29.1]} 48. Rh8
{[%clk 0:00:08.5]} 48... Kd5 {[%clk 0:00:28.2]} 49. Rxh5+ {[%clk 0:00:08.4]}
49... Kc4 {[%clk 0:00:29.1]} 50. Kg3 {[%clk 0:00:08.6]} 50... Kxc3 {[%clk
0:00:30]} 51. f4 {[%clk 0:00:09]} 51... Kd3 {[%clk 0:00:30.9]} 52. f5 {[%clk
0:00:09.1]} 52... Ke4 {[%clk 0:00:31.8]} 53. Kg4 {[%clk 0:00:09.3]} 53... Kd3
{[%clk 0:00:28.3]} 54. Kg5 {[%clk 0:00:09.5]} 54... Ke2 {[%clk 0:00:27]} 55. f4
{[%clk 0:00:09.6]} 55... Kf2 {[%clk 0:00:27.7]} 56. f6 {[%clk 0:00:09.8]} 56...
Kg3 {[%clk 0:00:28.2]} 57. f7 {[%clk 0:00:10.2]} 57... Kf3 {[%clk 0:00:28.5]}
58. f8=Q {[%clk 0:00:10.5]} 58... Kg3 {[%clk 0:00:29.4]} 59. h4 {[%clk
0:00:09.4]} 59... Kf3 {[%clk 0:00:30.3]} 60. Kf5 {[%clk 0:00:09.3]} 60... Kg3
{[%clk 0:00:31.2]} 61. Qg7+ {[%clk 0:00:09.2]} 61... Kf3 {[%clk 0:00:32.1]} 62.
Rg5 {[%clk 0:00:09]} 62... Ke3 {[%clk 0:00:33]} 63. Rg2 {[%clk 0:00:08.3]} 63...
Kf3 {[%clk 0:00:32.6]} 64. Qg3# {[%clk 0:00:08.1]} 1-0

[Event "Betsys MČR v online bleskovém šachu 2021"]
[Site "Chess.com"]
[Date "2021.04.17"]
[Round "7"]
[White "matej-c"]
[Black "TarantAnk"]
[Result "1-0"]
[WhiteElo "1964"]
[BlackElo "1727"]
[TimeControl "180+1"]
[EndTime "10:12:46 PDT"]
[Termination "Uživatel matej-c zvítězil matem"]

1. d4 {[%clk 0:03:00.9]} 1... Nf6 {[%clk 0:02:48]} 2. c4 {[%clk 0:02:59.7]} 2...
g6 {[%clk 0:02:47.4]} 3. g3 {[%clk 0:02:54.6]} 3... Bg7 {[%clk 0:02:47.8]} 4.
Bg2 {[%clk 0:02:54.2]} 4... O-O {[%clk 0:02:48.4]} 5. Nc3 {[%clk 0:02:54.1]}
5... d6 {[%clk 0:02:48.9]} 6. e4 {[%clk 0:02:52.5]} 6... c5 {[%clk 0:02:48.9]}
7. Nge2 {[%clk 0:02:41.9]} 7... Bg4 {[%clk 0:02:45.8]} 8. f3 {[%clk 0:02:37.8]}
8... Bc8 {[%clk 0:02:42.1]} 9. Be3 {[%clk 0:02:35.9]} 9... Nfd7 {[%clk
0:02:40.5]} 10. O-O {[%clk 0:02:29.9]} 10... Nc6 {[%clk 0:02:40.3]} 11. Qd2
{[%clk 0:02:23.9]} 11... e5 {[%clk 0:02:33.5]} 12. dxc5 {[%clk 0:02:19.4]} 12...
dxc5 {[%clk 0:02:32.7]} 13. Nd5 {[%clk 0:02:15.1]} 13... Nd4 {[%clk 0:02:24.7]}
14. Nec3 {[%clk 0:01:53.1]} 14... Nb6 {[%clk 0:02:20.7]} 15. Nxb6 {[%clk
0:01:50]} 15... Qxb6 {[%clk 0:02:19.3]} 16. Nd5 {[%clk 0:01:47.4]} 16... Qd8
{[%clk 0:02:14]} 17. Bg5 {[%clk 0:01:44.5]} 17... f6 {[%clk 0:02:07.2]} 18. Be3
{[%clk 0:01:44.5]} 18... Be6 {[%clk 0:02:06.3]} 19. Rac1 {[%clk 0:01:35.6]}
19... Bxd5 {[%clk 0:02:03.4]} 20. cxd5 {[%clk 0:01:33.6]} 20... Qd6 {[%clk
0:02:02.8]} 21. Rc3 {[%clk 0:01:26.2]} 21... b6 {[%clk 0:02:01]} 22. Rfc1 {[%clk
0:01:23.7]} 22... f5 {[%clk 0:01:58.4]} 23. b4 {[%clk 0:01:17.7]} 23... fxe4
{[%clk 0:01:54.2]} 24. fxe4 {[%clk 0:01:12.6]} 24... cxb4 {[%clk 0:01:39.3]} 25.
Rc7 {[%clk 0:01:06.5]} 25... Nb5 {[%clk 0:01:22.7]} 26. R7c6 {[%clk 0:00:45.2]}
26... Qd7 {[%clk 0:01:17.6]} 27. Qxb4 {[%clk 0:00:44]} 27... Nd4 {[%clk
0:01:11.8]} 28. Qd2 {[%clk 0:00:37.1]} 28... Rac8 {[%clk 0:01:08.5]} 29. Bxd4
{[%clk 0:00:30.8]} 29... Rxc6 {[%clk 0:00:52.1]} 30. dxc6 {[%clk 0:00:22.2]}
30... Qxd4+ {[%clk 0:00:49.9]} 31. Qxd4 {[%clk 0:00:21.9]} 31... exd4 {[%clk
0:00:50.1]} 32. c7 {[%clk 0:00:19.8]} 32... d3 {[%clk 0:00:23.4]} 33. c8=Q
{[%clk 0:00:19.3]} 33... Bd4+ {[%clk 0:00:22.9]} 34. Kh1 {[%clk 0:00:16]} 34...
Bc5 {[%clk 0:00:22.6]} 35. Rxc5 {[%clk 0:00:11.3]} 35... bxc5 {[%clk 0:00:22.1]}
36. Qe6+ {[%clk 0:00:10.8]} 36... Kg7 {[%clk 0:00:21.5]} 37. Qe5+ {[%clk
0:00:11]} 37... Kh6 {[%clk 0:00:20.8]} 38. Qxc5 {[%clk 0:00:08.4]} 38... Rd8
{[%clk 0:00:17.1]} 39. Qe3+ {[%clk 0:00:08]} 39... Kg7 {[%clk 0:00:16.5]} 40.
Qd2 {[%clk 0:00:08.4]} 40... Kf6 {[%clk 0:00:16.8]} 41. Kg1 {[%clk 0:00:09.3]}
41... Ke5 {[%clk 0:00:17.3]} 42. Kf2 {[%clk 0:00:10.1]} 42... Kd4 {[%clk
0:00:16.2]} 43. Qe3+ {[%clk 0:00:09.4]} 43... Kc3 {[%clk 0:00:16.3]} 44. Ke1
{[%clk 0:00:09.6]} 44... Kc2 {[%clk 0:00:15.7]} 45. Qc5+ {[%clk 0:00:08.5]}
45... Kb2 {[%clk 0:00:14.3]} 46. Kd2 {[%clk 0:00:09.4]} 46... Kxa2 {[%clk
0:00:13.5]} 47. Qc4+ {[%clk 0:00:08.2]} 47... Ka3 {[%clk 0:00:12]} 48. Qc5+
{[%clk 0:00:08.1]} 48... Kb2 {[%clk 0:00:11.7]} 49. e5 {[%clk 0:00:07.9]} 49...
a5 {[%clk 0:00:11.2]} 50. Bd5 {[%clk 0:00:08]} 50... a4 {[%clk 0:00:08.7]} 51.
Qc3+ {[%clk 0:00:08.3]} 51... Kb1 {[%clk 0:00:06.4]} 52. Qb4+ {[%clk 0:00:08.5]}
52... Ka1 {[%clk 0:00:03.3]} 53. Qa3+ {[%clk 0:00:08.6]} 53... Kb1 {[%clk
0:00:02.9]} 54. Qa2# {[%clk 0:00:09.1]} 1-0